[Event "*** Titled Tuesday Blitz"]
[Site "Chess.com"]
[Date "2018.04.03"]
[Round "1"]
[White "nicegg"]
[Black "HaryKane"]
[Result "0-1"]
[WhiteElo "1890"]
[BlackElo "2434"]
[TimeControl "180+2"]
[EndTime "13:02:21 PDT"]
[Termination "HaryKane won by checkmate"]

1. e4 {[%clk 0:02:58.9]} 1... e6 {[%clk 0:03:01.2]} 2. d4 {[%clk 0:02:59.4]}
2... d5 {[%clk 0:03:03.1]} 3. Nc3 {[%clk 0:03:00.4]} 3... Bb4 {[%clk 0:03:03.4]}
4. e5 {[%clk 0:03:01.4]} 4... c5 {[%clk 0:03:03.6]} 5. a3 {[%clk 0:03:02.6]}
5... Bxc3+ {[%clk 0:03:05.1]} 6. bxc3 {[%clk 0:03:03.7]} 6... Ne7 {[%clk
0:03:06.3]} 7. Bd3 {[%clk 0:03:03.9]} 7... Nbc6 {[%clk 0:03:04.3]} 8. Qg4 {[%clk
0:03:02.6]} 8... Qc7 {[%clk 0:02:57.6]} 9. Bb2 {[%clk 0:02:59.2]} 9... Bd7
{[%clk 0:02:54.9]} 10. Qxg7 {[%clk 0:02:56.8]} 10... O-O-O {[%clk 0:02:54.4]}
11. Qxf7 {[%clk 0:02:50]} 11... Rdf8 {[%clk 0:02:54.6]} 12. Qh5 {[%clk
0:02:50.2]} 12... cxd4 {[%clk 0:02:55.6]} 13. cxd4 {[%clk 0:02:50.1]} 13... Qa5+
{[%clk 0:02:56.5]} 14. Kd1 {[%clk 0:02:37.9]} 14... Rxf2 {[%clk 0:02:49.9]} 15.
Nf3 {[%clk 0:02:32.6]} 15... Rf8 {[%clk 0:02:41.8]} 16. Rf1 {[%clk 0:02:27.3]}
16... R8xf3 {[%clk 0:02:34]} 17. gxf3 {[%clk 0:02:21.7]} 17... Qd2# {[%clk
0:02:32.6]} 0-1

[Event "*** Titled Tuesday Blitz"]
[Site "Chess.com"]
[Date "2018.04.03"]
[Round "1"]
[White "fancyknightmaneuvers"]
[Black "RandomOracle"]
[Result "1-0"]
[WhiteElo "2524"]
[BlackElo "2157"]
[TimeControl "180+2"]
[EndTime "13:03:50 PDT"]
[Termination "fancyknightmaneuvers won by resignation"]

1. e4 {[%clk 0:02:56.9]} 1... c6 {[%clk 0:02:59.6]} 2. d4 {[%clk 0:02:57.1]}
2... d5 {[%clk 0:03:01.5]} 3. e5 {[%clk 0:02:58.6]} 3... Bf5 {[%clk 0:03:02.2]}
4. h4 {[%clk 0:03:00.2]} 4... Qb6 {[%clk 0:03:00.9]} 5. g4 {[%clk 0:02:55.5]}
5... Bd7 {[%clk 0:03:01.1]} 6. c4 {[%clk 0:02:46.9]} 6... Nh6 {[%clk 0:02:53]}
7. f3 {[%clk 0:02:41.2]} 7... c5 {[%clk 0:02:46.6]} 8. dxc5 {[%clk 0:02:35]}
8... Qxc5 {[%clk 0:02:46]} 9. cxd5 {[%clk 0:02:36.5]} 9... Na6 {[%clk 0:02:32]}
10. Nc3 {[%clk 0:02:35.7]} 10... b5 {[%clk 0:02:24.9]} 11. a3 {[%clk 0:02:34.6]}
11... Nc7 {[%clk 0:02:24.1]} 12. Qd3 {[%clk 0:02:30.4]} 12... Rd8 {[%clk
0:02:24.1]} 13. Be3 {[%clk 0:02:30.6]} 13... Qc4 {[%clk 0:02:19.8]} 14. Qd1
{[%clk 0:02:19.1]} 14... Nxd5 {[%clk 0:02:04.1]} 15. Bxc4 {[%clk 0:01:56.2]}
15... Nxe3 {[%clk 0:02:04.2]} 16. Nd5 {[%clk 0:01:57.3]} 16... Rc8 {[%clk
0:01:58.6]} 17. Nxe3 {[%clk 0:01:56.2]} 17... bxc4 {[%clk 0:01:56.9]} 18. Ne2
{[%clk 0:01:56.8]} 18... e6 {[%clk 0:01:57.2]} 19. Rc1 {[%clk 0:01:54]} 19...
Bc5 {[%clk 0:01:57.8]} 20. Nxc4 {[%clk 0:01:55.1]} 1-0

[Event "*** Titled Tuesday Blitz"]
[Site "Chess.com"]
[Date "2018.04.03"]
[Round "1"]
[White "2L8IWUN"]
[Black "Koksik_13"]
[Result "0-1"]
[WhiteElo "2094"]
[BlackElo "2476"]
[TimeControl "180+2"]
[EndTime "13:04:16 PDT"]
[Termination "Koksik_13 won by resignation"]

1. d4 {[%clk 0:03:01.9]} 1... e6 {[%clk 0:03:00.1]} 2. c4 {[%clk 0:02:57.2]}
2... d5 {[%clk 0:03:00.8]} 3. Nf3 {[%clk 0:02:56.9]} 3... Nf6 {[%clk 0:03:01.6]}
4. Nc3 {[%clk 0:02:57.2]} 4... a6 {[%clk 0:03:00.7]} 5. cxd5 {[%clk 0:02:45.1]}
5... exd5 {[%clk 0:03:01.3]} 6. Bf4 {[%clk 0:02:44.5]} 6... c6 {[%clk
0:03:01.9]} 7. e3 {[%clk 0:02:44.4]} 7... Nbd7 {[%clk 0:03:02.3]} 8. h3 {[%clk
0:02:45.6]} 8... Be7 {[%clk 0:03:02.7]} 9. Bd3 {[%clk 0:02:45.6]} 9... O-O
{[%clk 0:03:02.9]} 10. O-O {[%clk 0:02:46.8]} 10... Re8 {[%clk 0:03:04.2]} 11.
Ne5 {[%clk 0:02:46.7]} 11... Nf8 {[%clk 0:03:03.4]} 12. a3 {[%clk 0:02:39.5]}
12... Ng6 {[%clk 0:03:04.1]} 13. Nxg6 {[%clk 0:02:31.6]} 13... hxg6 {[%clk
0:03:05.6]} 14. b4 {[%clk 0:02:32.6]} 14... Bf5 {[%clk 0:03:04.7]} 15. Bxf5
{[%clk 0:02:33.3]} 15... gxf5 {[%clk 0:03:06.6]} 16. Qd3 {[%clk 0:02:33.6]}
16... Ne4 {[%clk 0:03:07.4]} 17. Nxe4 {[%clk 0:02:34.8]} 17... fxe4 {[%clk
0:03:08.2]} 18. Qd2 {[%clk 0:02:33.4]} 18... Bd6 {[%clk 0:03:05.9]} 19. Bxd6
{[%clk 0:02:32.9]} 19... Qxd6 {[%clk 0:03:07.8]} 20. Qc2 {[%clk 0:02:27.1]}
20... Re6 {[%clk 0:03:07.8]} 21. Qc5 {[%clk 0:02:27.4]} 21... Qd7 {[%clk
0:03:09]} 22. a4 {[%clk 0:02:22.5]} 22... Rg6 {[%clk 0:03:09.8]} 23. Kh1 {[%clk
0:02:14.9]} 23... Re8 {[%clk 0:03:10.3]} 24. b5 {[%clk 0:02:14.3]} 24... Ree6
{[%clk 0:03:11.2]} 25. bxa6 {[%clk 0:02:14.4]} 25... bxa6 {[%clk 0:03:11.7]} 26.
Rab1 {[%clk 0:02:12.6]} 26... Kh7 {[%clk 0:03:09.9]} 27. Rb8 {[%clk 0:02:09.7]}
27... Rxg2 {[%clk 0:03:05.6]} 28. Kxg2 {[%clk 0:01:46.5]} 28... Rg6+ {[%clk
0:03:05.2]} 29. Kh2 {[%clk 0:01:47.3]} 29... Rh6 {[%clk 0:03:03.8]} 30. Rh8+
{[%clk 0:01:13.7]} 30... Kxh8 {[%clk 0:03:02.8]} 0-1

[Event "*** Titled Tuesday Blitz"]
[Site "Chess.com"]
[Date "2018.04.03"]
[Round "1"]
[White "ChessQueen"]
[Black "spidernv"]
[Result "1/2-1/2"]
[WhiteElo "2648"]
[BlackElo "2352"]
[TimeControl "180+2"]
[EndTime "13:04:18 PDT"]
[Termination "Game drawn by agreement"]

1. Nf3 {[%clk 0:03:01.9]} 1... Nf6 {[%clk 0:02:58.9]} 2. g3 {[%clk 0:03:02.9]}
2... c6 {[%clk 0:02:59.1]} 3. Bg2 {[%clk 0:03:04.4]} 3... d5 {[%clk 0:02:59.2]}
4. O-O {[%clk 0:03:05.4]} 4... Bf5 {[%clk 0:03:00.1]} 5. d3 {[%clk 0:03:02.8]}
5... Nbd7 {[%clk 0:03:01]} 6. Nbd2 {[%clk 0:03:00.4]} 6... e6 {[%clk 0:03:01.9]}
7. Re1 {[%clk 0:02:57.9]} 7... Bg6 {[%clk 0:02:57.2]} 8. e4 {[%clk 0:02:57.7]}
8... dxe4 {[%clk 0:02:58.3]} 9. dxe4 {[%clk 0:02:55]} 9... Be7 {[%clk
0:02:59.3]} 10. Qe2 {[%clk 0:02:54]} 10... O-O {[%clk 0:02:59.2]} 11. b3 {[%clk
0:02:46]} 11... Bh5 {[%clk 0:02:56.8]} 12. Bb2 {[%clk 0:02:46]} 12... Qa5 {[%clk
0:02:57.5]} 13. h3 {[%clk 0:02:42.3]} 13... Rad8 {[%clk 0:02:54.9]} 14. g4
{[%clk 0:02:39.2]} 14... Bg6 {[%clk 0:02:55.7]} 15. Nc4 {[%clk 0:02:39.2]} 15...
Qc7 {[%clk 0:02:55.4]} 16. Nfe5 {[%clk 0:02:37.8]} 16... Nxe5 {[%clk 0:02:55.3]}
17. Nxe5 {[%clk 0:02:38.3]} 17... Nd7 {[%clk 0:02:54.2]} 18. Nxg6 {[%clk
0:02:38.7]} 18... hxg6 {[%clk 0:02:54.7]} 19. Rad1 {[%clk 0:02:39.4]} 19... e5
{[%clk 0:02:54.7]} 20. Bf1 {[%clk 0:02:25.3]} 20... Nc5 {[%clk 0:02:55.4]} 21.
Qf3 {[%clk 0:02:25.4]} 21... Ne6 {[%clk 0:02:55.1]} 22. Bc4 {[%clk 0:02:21.3]}
22... Nf4 {[%clk 0:02:55.9]} 23. Bc1 {[%clk 0:02:20.1]} 23... g5 {[%clk
0:02:53.7]} 24. Bxf4 {[%clk 0:02:18.3]} 24... gxf4 {[%clk 0:02:53.5]} 25. Rxd8
{[%clk 0:02:19.7]} 25... Rxd8 {[%clk 0:02:51.4]} 26. Rd1 {[%clk 0:02:21.1]}
26... Rxd1+ {[%clk 0:02:51.2]} 27. Qxd1 {[%clk 0:02:22.1]} 27... Qd6 {[%clk
0:02:52.4]} 28. Qxd6 {[%clk 0:02:22.7]} 28... Bxd6 {[%clk 0:02:53.1]} 29. Kf1
{[%clk 0:02:23.4]} 29... Kf8 {[%clk 0:02:53.9]} 30. a4 {[%clk 0:02:23.8]} 30...
Ke7 {[%clk 0:02:54.8]} 31. h4 {[%clk 0:02:25.1]} 31... f6 {[%clk 0:02:51.6]} 32.
Ke2 {[%clk 0:02:23.8]} 32... Bc5 {[%clk 0:02:52.5]} 33. Kf3 {[%clk 0:02:24]}
33... Kd6 {[%clk 0:02:53.6]} 34. g5 {[%clk 0:02:22.7]} 34... fxg5 {[%clk
0:02:52.9]} 35. hxg5 {[%clk 0:02:24.2]} 35... Ke7 {[%clk 0:02:51.5]} 36. Kg2
{[%clk 0:02:24.9]} 36... g6 {[%clk 0:02:50.7]} 37. f3 {[%clk 0:02:21.3]} 37...
Kf8 {[%clk 0:02:50.2]} 38. Kh3 {[%clk 0:02:21]} 38... Kg7 {[%clk 0:02:51.1]} 39.
Kg4 {[%clk 0:02:22.1]} 39... Bf2 {[%clk 0:02:51.8]} 40. Be6 {[%clk 0:02:21.3]}
40... b6 {[%clk 0:02:52.5]} 41. Bd7 {[%clk 0:02:20.7]} 41... c5 {[%clk
0:02:53.6]} 42. Bb5 {[%clk 0:02:21.7]} 42... Be1 {[%clk 0:02:54.4]} 43. Bc4
{[%clk 0:02:22.4]} 43... Bc3 {[%clk 0:02:55]} 44. Bd5 {[%clk 0:02:23.4]} 1/2-1/2

[Event "*** Titled Tuesday Blitz"]
[Site "Chess.com"]
[Date "2018.04.03"]
[Round "1"]
[White "thegreatauk"]
[Black "Zufi1811"]
[Result "0-1"]
[WhiteElo "1923"]
[BlackElo "2438"]
[TimeControl "180+2"]
[EndTime "13:04:23 PDT"]
[Termination "Zufi1811 won by checkmate"]

1. d4 {[%clk 0:02:58.7]} 1... Nf6 {[%clk 0:02:59.5]} 2. Bf4 {[%clk 0:02:57]}
2... d5 {[%clk 0:02:58.4]} 3. e3 {[%clk 0:02:54.7]} 3... e6 {[%clk 0:02:59.7]}
4. Nd2 {[%clk 0:02:50.6]} 4... Bd6 {[%clk 0:03:00.8]} 5. Bg3 {[%clk 0:02:50.6]}
5... c5 {[%clk 0:03:01.1]} 6. c3 {[%clk 0:02:50.6]} 6... Qc7 {[%clk 0:03:01.6]}
7. Ngf3 {[%clk 0:02:51.6]} 7... Nbd7 {[%clk 0:03:02.6]} 8. Bd3 {[%clk
0:02:52.1]} 8... O-O {[%clk 0:03:00.9]} 9. Bb1 {[%clk 0:02:47.7]} 9... e5 {[%clk
0:02:58.1]} 10. dxe5 {[%clk 0:02:48.1]} 10... Nxe5 {[%clk 0:03:00]} 11. Nxe5
{[%clk 0:02:49.6]} 11... Bxe5 {[%clk 0:03:01.6]} 12. Bxe5 {[%clk 0:02:50.9]}
12... Qxe5 {[%clk 0:03:02.8]} 13. Nf3 {[%clk 0:02:52.5]} 13... Qe7 {[%clk
0:03:03.5]} 14. Qd3 {[%clk 0:02:40.8]} 14... h6 {[%clk 0:02:53.7]} 15. Bc2
{[%clk 0:02:39.9]} 15... b6 {[%clk 0:02:52.1]} 16. O-O-O {[%clk 0:02:40.4]}
16... Bb7 {[%clk 0:02:52.6]} 17. g4 {[%clk 0:02:37]} 17... Ne4 {[%clk 0:02:52]}
18. Qf1 {[%clk 0:02:32.9]} 18... a5 {[%clk 0:02:49.8]} 19. Bxe4 {[%clk
0:02:31.4]} 19... dxe4 {[%clk 0:02:49.1]} 20. Nd2 {[%clk 0:02:32.4]} 20... a4
{[%clk 0:02:47.7]} 21. h4 {[%clk 0:02:19.7]} 21... Rfd8 {[%clk 0:02:45.9]} 22.
g5 {[%clk 0:02:18.3]} 22... h5 {[%clk 0:02:46.8]} 23. g6 {[%clk 0:02:11.9]}
23... fxg6 {[%clk 0:02:45.6]} 24. Qg2 {[%clk 0:02:11.5]} 24... Kh7 {[%clk
0:02:30.8]} 25. Rdg1 {[%clk 0:02:09.2]} 25... Rd6 {[%clk 0:02:29.3]} 26. Nc4
{[%clk 0:02:06.5]} 26... Rf6 {[%clk 0:02:24.8]} 27. Qg5 {[%clk 0:02:05.1]} 27...
Qe6 {[%clk 0:02:13.9]} 28. Ne5 {[%clk 0:02:02.6]} 28... Qxa2 {[%clk 0:01:54.7]}
29. Nxg6 {[%clk 0:01:58.9]} 29... Qa1+ {[%clk 0:01:53.6]} 30. Kc2 {[%clk
0:01:59.7]} 30... Rxf2# {[%clk 0:01:53.1]} 0-1

[Event "*** Titled Tuesday Blitz"]
[Site "Chess.com"]
[Date "2018.04.03"]
[Round "1"]
[White "DrHolmes13"]
[Black "EmeseBalogh"]
[Result "1-0"]
[WhiteElo "2449"]
[BlackElo "1974"]
[TimeControl "180+2"]
[EndTime "13:04:46 PDT"]
[Termination "DrHolmes13 won by resignation"]

1. d4 {[%clk 0:03:01.9]} 1... d5 {[%clk 0:02:59.8]} 2. c4 {[%clk 0:03:02.2]}
2... c6 {[%clk 0:03:00.9]} 3. Nf3 {[%clk 0:03:01.3]} 3... Nf6 {[%clk 0:03:01.6]}
4. g3 {[%clk 0:03:02.5]} 4... Bg4 {[%clk 0:03:02.2]} 5. Ne5 {[%clk 0:03:01.9]}
5... Bh5 {[%clk 0:03:02.2]} 6. cxd5 {[%clk 0:02:47.5]} 6... Nxd5 {[%clk
0:02:58.2]} 7. Bg2 {[%clk 0:02:45.3]} 7... e6 {[%clk 0:02:58.9]} 8. g4 {[%clk
0:02:41.2]} 8... Bg6 {[%clk 0:02:59.3]} 9. e4 {[%clk 0:02:39.8]} 9... Nb4 {[%clk
0:02:58.6]} 10. O-O {[%clk 0:02:34.8]} 10... Bd6 {[%clk 0:02:58.2]} 11. Nc4
{[%clk 0:02:29.9]} 11... Bc7 {[%clk 0:02:48.6]} 12. f4 {[%clk 0:02:29.3]} 12...
Qh4 {[%clk 0:02:40.7]} 13. Qb3 {[%clk 0:02:24.6]} 13... a5 {[%clk 0:02:05.1]}
14. a3 {[%clk 0:02:25.1]} 14... b5 {[%clk 0:02:06.1]} 15. Ne5 {[%clk 0:02:20.1]}
15... N4a6 {[%clk 0:02:04.1]} 16. f5 {[%clk 0:02:14.9]} 16... Bxe5 {[%clk
0:01:57.6]} 17. dxe5 {[%clk 0:02:12.9]} 17... exf5 {[%clk 0:01:55.5]} 18. exf5
{[%clk 0:02:11.3]} 18... Qxg4 {[%clk 0:01:55.9]} 19. fxg6 {[%clk 0:02:08]} 19...
Qxg6 {[%clk 0:01:57.8]} 20. e6 {[%clk 0:02:04.9]} 20... O-O {[%clk 0:01:57.5]}
21. exf7+ {[%clk 0:02:04.4]} 21... Kh8 {[%clk 0:01:58.5]} 22. Qg3 {[%clk
0:01:57.7]} 22... Qe6 {[%clk 0:01:52.9]} 23. Qe3 {[%clk 0:01:53.2]} 23... Qg6
{[%clk 0:01:47.5]} 24. Qe7 {[%clk 0:01:51]} 1-0

[Event "*** Titled Tuesday Blitz"]
[Site "Chess.com"]
[Date "2018.04.03"]
[Round "1"]
[White "pultineviciuspaulius"]
[Black "Al_Shima"]
[Result "1-0"]
[WhiteElo "2610"]
[BlackElo "2270"]
[TimeControl "180+2"]
[EndTime "13:04:57 PDT"]
[Termination "pultineviciuspaulius won by resignation"]

1. Nf3 {[%clk 0:03:01.6]} 1... Nf6 {[%clk 0:03:00.3]} 2. g3 {[%clk 0:03:02.5]}
2... b6 {[%clk 0:03:00.6]} 3. Bg2 {[%clk 0:02:50.9]} 3... Bb7 {[%clk 0:03:01.5]}
4. O-O {[%clk 0:02:52.8]} 4... g6 {[%clk 0:03:02.5]} 5. d4 {[%clk 0:02:53.8]}
5... Bg7 {[%clk 0:03:02.9]} 6. c4 {[%clk 0:02:55.3]} 6... O-O {[%clk 0:03:03.7]}
7. Nc3 {[%clk 0:02:56.8]} 7... c5 {[%clk 0:03:04]} 8. d5 {[%clk 0:02:56.9]} 8...
e6 {[%clk 0:03:03.1]} 9. e4 {[%clk 0:02:56.2]} 9... exd5 {[%clk 0:03:04.1]} 10.
cxd5 {[%clk 0:02:57.3]} 10... d6 {[%clk 0:03:04.9]} 11. a4 {[%clk 0:02:57.3]}
11... Na6 {[%clk 0:03:05]} 12. h3 {[%clk 0:02:57.2]} 12... Nb4 {[%clk
0:03:04.1]} 13. Re1 {[%clk 0:02:55.7]} 13... Re8 {[%clk 0:03:03.7]} 14. Bf4
{[%clk 0:02:54.5]} 14... Ba6 {[%clk 0:03:03.9]} 15. e5 {[%clk 0:02:50]} 15...
dxe5 {[%clk 0:02:58.4]} 16. Nxe5 {[%clk 0:02:51.8]} 16... Nh5 {[%clk 0:02:44.8]}
17. d6 {[%clk 0:02:46.9]} 17... Nxf4 {[%clk 0:02:38.1]} 18. gxf4 {[%clk
0:02:45.7]} 18... Rb8 {[%clk 0:01:59.1]} 19. Qb3 {[%clk 0:02:44]} 19... Rf8
{[%clk 0:01:54.6]} 20. Rad1 {[%clk 0:02:22.8]} 20... Bb7 {[%clk 0:01:46.2]} 21.
d7 {[%clk 0:02:11.7]} 21... Bxg2 {[%clk 0:01:42.8]} 22. Nxf7 {[%clk 0:02:08.2]}
22... Qf6 {[%clk 0:01:32.9]} 23. d8=Q {[%clk 0:02:05]} 23... Rbxd8 {[%clk
0:01:25.4]} 24. Nxd8+ {[%clk 0:02:04.5]} 24... Kh8 {[%clk 0:01:23.8]} 25. Kxg2
{[%clk 0:02:01.5]} 25... Rxd8 {[%clk 0:01:24.6]} 26. Rxd8+ {[%clk 0:01:46.7]}
26... Qxd8 {[%clk 0:01:26.5]} 27. Qf7 {[%clk 0:01:47.7]} 1-0

[Event "*** Titled Tuesday Blitz"]
[Site "Chess.com"]
[Date "2018.04.03"]
[Round "1"]
[White "Goala"]
[Black "amintabatabaei"]
[Result "0-1"]
[WhiteElo "2306"]
[BlackElo "2647"]
[TimeControl "180+2"]
[EndTime "13:05:00 PDT"]
[Termination "amintabatabaei won by resignation"]

1. d4 {[%clk 0:03:01.9]} 1... e6 {[%clk 0:02:57.8]} 2. c4 {[%clk 0:03:02.1]}
2... b6 {[%clk 0:02:58.5]} 3. Nc3 {[%clk 0:03:00.9]} 3... Bb7 {[%clk 0:02:57.9]}
4. Nf3 {[%clk 0:03:01.5]} 4... Nf6 {[%clk 0:02:58]} 5. g3 {[%clk 0:03:02.8]}
5... Be7 {[%clk 0:02:52.9]} 6. Bg2 {[%clk 0:02:58.5]} 6... Ne4 {[%clk
0:02:53.2]} 7. Qc2 {[%clk 0:02:58.6]} 7... Nxc3 {[%clk 0:02:53.6]} 8. Qxc3
{[%clk 0:03:00.5]} 8... O-O {[%clk 0:02:53.6]} 9. O-O {[%clk 0:03:01.4]} 9... d6
{[%clk 0:02:54.4]} 10. Re1 {[%clk 0:03:02.4]} 10... Be4 {[%clk 0:02:51]} 11. Bh3
{[%clk 0:03:00.5]} 11... Nd7 {[%clk 0:02:49.5]} 12. b3 {[%clk 0:02:57.1]} 12...
c5 {[%clk 0:02:46.6]} 13. Bb2 {[%clk 0:02:54]} 13... Bf6 {[%clk 0:02:47]} 14.
Qe3 {[%clk 0:02:32.2]} 14... Bxf3 {[%clk 0:02:42.8]} 15. exf3 {[%clk 0:02:24.5]}
15... cxd4 {[%clk 0:02:41.4]} 16. Bxd4 {[%clk 0:02:26.4]} 16... Bxd4 {[%clk
0:02:40.8]} 17. Qxd4 {[%clk 0:02:28.3]} 17... Qc7 {[%clk 0:02:41.7]} 18. Rad1
{[%clk 0:02:26.2]} 18... Ne5 {[%clk 0:02:41.2]} 19. Bg2 {[%clk 0:02:22.6]} 19...
Rad8 {[%clk 0:02:42]} 20. f4 {[%clk 0:02:19.3]} 20... Nc6 {[%clk 0:02:42.6]} 21.
Qe4 {[%clk 0:02:16.5]} 21... Ne7 {[%clk 0:02:41.1]} 22. Rd2 {[%clk 0:02:12.8]}
22... d5 {[%clk 0:02:39.3]} 23. cxd5 {[%clk 0:02:10.4]} 23... Nxd5 {[%clk
0:02:41.2]} 24. Red1 {[%clk 0:02:10.5]} 24... Nc3 {[%clk 0:02:38.9]} 25. Qc2
{[%clk 0:02:03]} 25... Ne2+ {[%clk 0:02:04.6]} 26. Rxe2 {[%clk 0:01:25.1]} 26...
Qxc2 {[%clk 0:02:01.7]} 27. Rxc2 {[%clk 0:01:27]} 27... Rxd1+ {[%clk 0:02:02]}
28. Bf1 {[%clk 0:01:28.6]} 28... Rfd8 {[%clk 0:02:02.5]} 29. Kg2 {[%clk
0:01:27.7]} 29... R1d2 {[%clk 0:01:59.2]} 0-1

[Event "*** Titled Tuesday Blitz"]
[Site "Chess.com"]
[Date "2018.04.03"]
[Round "1"]
[White "x-3738459472"]
[Black "codapbg94"]
[Result "1-0"]
[WhiteElo "2468"]
[BlackElo "2049"]
[TimeControl "180+2"]
[EndTime "13:05:11 PDT"]
[Termination "x-3738459472 won by resignation"]

1. e4 {[%clk 0:02:58.8]} 1... c5 {[%clk 0:03:00.6]} 2. Nc3 {[%clk 0:02:58.9]}
2... d6 {[%clk 0:03:01.1]} 3. Nf3 {[%clk 0:02:57.5]} 3... Nf6 {[%clk 0:03:00.4]}
4. d4 {[%clk 0:02:54.1]} 4... cxd4 {[%clk 0:03:00.3]} 5. Nxd4 {[%clk 0:02:56]}
5... a6 {[%clk 0:03:00.8]} 6. Rg1 {[%clk 0:02:54.7]} 6... e5 {[%clk 0:03:00]} 7.
Nb3 {[%clk 0:02:55.1]} 7... Be6 {[%clk 0:02:51.7]} 8. g4 {[%clk 0:02:55]} 8...
d5 {[%clk 0:02:52.9]} 9. exd5 {[%clk 0:02:54.8]} 9... Nxd5 {[%clk 0:02:53.9]}
10. Nxd5 {[%clk 0:02:55.2]} 10... Qxd5 {[%clk 0:02:52]} 11. Qxd5 {[%clk
0:02:55]} 11... Bxd5 {[%clk 0:02:52.7]} 12. Be3 {[%clk 0:02:53.4]} 12... Nc6
{[%clk 0:02:53.2]} 13. O-O-O {[%clk 0:02:53.9]} 13... O-O-O {[%clk 0:02:54]} 14.
Bb6 {[%clk 0:02:44]} 14... Rd7 {[%clk 0:02:43.7]} 15. g5 {[%clk 0:02:43.5]}
15... Be7 {[%clk 0:02:38.3]} 16. Bh3 {[%clk 0:02:43]} 16... Be6 {[%clk
0:02:36.2]} 17. Bxe6 {[%clk 0:02:43.9]} 17... fxe6 {[%clk 0:02:36.8]} 18. Rxd7
{[%clk 0:02:39.2]} 18... Kxd7 {[%clk 0:02:37.7]} 19. g6 {[%clk 0:02:36]} 19...
h6 {[%clk 0:02:29.5]} 20. Be3 {[%clk 0:02:32.3]} 20... Rf8 {[%clk 0:02:15.7]}
21. c3 {[%clk 0:02:27]} 21... Kc7 {[%clk 0:02:16.6]} 22. Nd2 {[%clk 0:02:27.3]}
22... Rf5 {[%clk 0:02:12.3]} 23. Bxh6 {[%clk 0:02:17.7]} 23... Bf6 {[%clk
0:02:08.3]} 24. Be3 {[%clk 0:02:18.4]} 24... Rh5 {[%clk 0:02:08.7]} 25. Ne4
{[%clk 0:02:19.5]} 25... Be7 {[%clk 0:02:05.5]} 26. Rg2 {[%clk 0:02:19.5]} 26...
Na5 {[%clk 0:02:02.2]} 27. b3 {[%clk 0:02:17.7]} 27... b6 {[%clk 0:02:02.6]} 28.
Kd1 {[%clk 0:02:10]} 28... Nb7 {[%clk 0:02:03.8]} 29. Ke2 {[%clk 0:02:10.8]}
29... Nc5 {[%clk 0:02:05.1]} 30. Bxc5 {[%clk 0:02:07.9]} 30... bxc5 {[%clk
0:02:06.2]} 31. Nd2 {[%clk 0:01:56.9]} 31... Kc6 {[%clk 0:01:58.8]} 32. Nf1
{[%clk 0:01:49.7]} 32... Rh3 {[%clk 0:01:56.4]} 33. Rg3 {[%clk 0:01:48.6]} 33...
Rh5 {[%clk 0:01:56.5]} 34. Ne3 {[%clk 0:01:46.6]} 34... Rxh2 {[%clk 0:01:54.7]}
35. Rf3 {[%clk 0:01:44.5]} 35... Bf6 {[%clk 0:01:55.4]} 36. Rxf6 {[%clk
0:01:44.4]} 1-0

[Event "*** Titled Tuesday Blitz"]
[Site "Chess.com"]
[Date "2018.04.03"]
[Round "1"]
[White "Generalas"]
[Black "TregubovP"]
[Result "1-0"]
[WhiteElo "2169"]
[BlackElo "2466"]
[TimeControl "180+2"]
[EndTime "13:05:12 PDT"]
[Termination "Generalas won by resignation"]

1. e4 {[%clk 0:03:01.4]} 1... c5 {[%clk 0:02:59.3]} 2. c3 {[%clk 0:03:01.8]}
2... d6 {[%clk 0:02:58.6]} 3. d4 {[%clk 0:03:01.8]} 3... Nf6 {[%clk 0:03:00]} 4.
f3 {[%clk 0:03:01.9]} 4... g6 {[%clk 0:02:59.9]} 5. dxc5 {[%clk 0:03:00.1]} 5...
Bg7 {[%clk 0:02:58.9]} 6. cxd6 {[%clk 0:02:58.4]} 6... exd6 {[%clk 0:02:59.9]}
7. Bf4 {[%clk 0:02:57.7]} 7... O-O {[%clk 0:02:55.6]} 8. Bxd6 {[%clk 0:02:49.3]}
8... Re8 {[%clk 0:02:46.6]} 9. Bxb8 {[%clk 0:02:21.8]} 9... Qb6 {[%clk
0:02:34.9]} 10. Bg3 {[%clk 0:02:14.4]} 10... Qxb2 {[%clk 0:02:27.9]} 11. Nd2
{[%clk 0:02:14.6]} 11... Nxe4 {[%clk 0:02:28.8]} 12. fxe4 {[%clk 0:02:03.4]}
12... Bxc3 {[%clk 0:02:29]} 13. Rc1 {[%clk 0:01:59.1]} 13... Rxe4+ {[%clk
0:02:23.8]} 14. Be2 {[%clk 0:01:56.7]} 14... Bg4 {[%clk 0:02:16.4]} 15. Rc2
{[%clk 0:01:50.1]} 15... Qb4 {[%clk 0:02:16.2]} 16. Kf1 {[%clk 0:01:41.9]} 16...
Rd4 {[%clk 0:02:12.2]} 17. Bxg4 {[%clk 0:01:40.3]} 17... Bxd2 {[%clk 0:02:05]}
18. Nf3 {[%clk 0:01:36.4]} 18... Qb5+ {[%clk 0:01:57.3]} 19. Kf2 {[%clk
0:01:23.4]} 19... Be3+ {[%clk 0:01:54.9]} 20. Kxe3 {[%clk 0:01:24.5]} 20... Rxd1
{[%clk 0:01:40.7]} 21. Rxd1 {[%clk 0:01:26.4]} 21... Qa4 {[%clk 0:01:27.4]} 22.
Nd4 {[%clk 0:01:22.3]} 22... Re8+ {[%clk 0:01:27.8]} 23. Kf2 {[%clk 0:01:22.5]}
23... Re4 {[%clk 0:01:28.6]} 24. Bf3 {[%clk 0:01:16.4]} 24... Rxd4 {[%clk
0:01:27.4]} 25. Rc8+ {[%clk 0:01:16.9]} 1-0

[Event "*** Titled Tuesday Blitz"]
[Site "Chess.com"]
[Date "2018.04.03"]
[Round "1"]
[White "nOcHeaTiNgKiD"]
[Black "Bigfish1995"]
[Result "0-1"]
[WhiteElo "2399"]
[BlackElo "2769"]
[TimeControl "180+2"]
[EndTime "13:05:21 PDT"]
[Termination "Bigfish1995 won by resignation"]

1. d4 {[%clk 0:03:00.5]} 1... Nf6 {[%clk 0:02:58.8]} 2. Nf3 {[%clk 0:03:01]}
2... e6 {[%clk 0:02:59.8]} 3. Bf4 {[%clk 0:03:01.6]} 3... b6 {[%clk 0:02:58]} 4.
e3 {[%clk 0:03:02.7]} 4... Bb7 {[%clk 0:02:59]} 5. Nbd2 {[%clk 0:03:04]} 5...
Be7 {[%clk 0:02:58.9]} 6. h3 {[%clk 0:03:05.2]} 6... c5 {[%clk 0:02:58.7]} 7. c3
{[%clk 0:03:06.2]} 7... O-O {[%clk 0:02:59.6]} 8. Bd3 {[%clk 0:03:07.3]} 8... d5
{[%clk 0:02:58.9]} 9. O-O {[%clk 0:03:07.1]} 9... Nbd7 {[%clk 0:02:59.4]} 10. a4
{[%clk 0:03:05.6]} 10... a6 {[%clk 0:02:51.6]} 11. Qe2 {[%clk 0:02:58.9]} 11...
g6 {[%clk 0:02:39]} 12. Bh6 {[%clk 0:02:50.6]} 12... Re8 {[%clk 0:02:38.9]} 13.
e4 {[%clk 0:02:51.7]} 13... cxd4 {[%clk 0:02:20.4]} 14. Nxd4 {[%clk 0:02:31.2]}
14... e5 {[%clk 0:02:13.9]} 15. N4f3 {[%clk 0:02:27.8]} 15... Nc5 {[%clk
0:02:14]} 16. Bc2 {[%clk 0:01:41.5]} 16... dxe4 {[%clk 0:02:12.1]} 17. Ng5
{[%clk 0:01:39.1]} 17... Nd5 {[%clk 0:01:54.7]} 18. Ngxe4 {[%clk 0:01:35.2]}
18... Nf4 {[%clk 0:01:53.3]} 19. Qe3 {[%clk 0:01:08.6]} 19... Nxe4 {[%clk
0:01:51.2]} 20. Nxe4 {[%clk 0:01:09.1]} 20... f5 {[%clk 0:01:51.6]} 21. Bb3+
{[%clk 0:00:57]} 21... Kh8 {[%clk 0:01:48.7]} 22. Ng3 {[%clk 0:00:50.7]} 22...
Bc5 {[%clk 0:01:47.4]} 23. Nxf5 {[%clk 0:00:45.4]} 23... gxf5 {[%clk 0:01:44.4]}
0-1